[Event "Croatian 1B League 2022"]
[Site "Porec"]
[Date "2022.09.27"]
[Round "4.2"]
[White "Sprenger, Jan Michael"]
[Black "Drnovsek, Gal"]
[Result "0-1"]
[ECO "B90"]
[WhiteElo "2475"]
[BlackElo "2393"]
[Annotator "TA"]
[PlyCount "120"]
[EventDate "2022.09.24"]
[EventType "team-tourn"]
[EventCountry "CRO"]
[SourceTitle "playchess.com"]
[Source "ChessBase"]
[SourceQuality "1"]
[TimeControl "40/5400+30:1800+30"]

{[%evp 13,120,27,39,50,34,32,50,48,48,41,52,32,47,43,41,-18,-24,-15,-20,-24,-33,-41,-27,-36,-32,-58,-42,-47,-51,-115,-113,-109,-57,-64,-77,-55,-56,-220,-65,-98,-100,-77,-96,-69,-30,-77,0,-80,0,-70,-63,-68,0,0,0,0,0,2,13,0,0,-223,-214,-260,-255,-244,-242,-228,-234,-316,-317,-319,-318,-319,-306,-306,-271,-415,-259,-409,-404,-487,-479,-461,-306,-306,-306,-12836,-559,-2010,0,-12836,-12835,-12843,-1128,-12840,-12841,-12841,-12841,-12842,-12842,-12845,-12844,-12844,-12845,-12845,-12843,-12841,-12841]} 1. e4 {[%emt 0:00:05]} c5 {[%emt 0:00:42]} 2. Nf3 {[%emt 0:00:05]} d6 {[%emt 0:00:06]} 3. d4 {[%emt 0:00:40]} cxd4 {[%emt 0:00:07]} 4. Nxd4 {[%emt 0:00:03]} Nf6 {[%emt 0:00:10]} 5. Nc3 {[%emt 0:00:03]} a6 {[%emt 0:00:09]} 6. h3 {[%emt 0:01:07]} e5 {[%emt 0:01:01]} 7. Nde2 {[%emt 0:00:16]} Be7 {[%emt 0:02:06]} 8. g4 {[%emt 0:00:26] B90: Sicilian Najdorf: Unusual White 6th moves, 6 Be3 Ng4 and 6 Be3 e5.} h6 {[%emt 0:00:17]} 9. Bg2 {[%emt 0:00:49]} Nbd7 {[%emt 0:02:45]} 10. Ng3 {[%emt 0:06:18] White is slightly better.} Nb6 {[%emt 0:02:50]} 11. O-O {[%emt 0:12:44]} O-O {[%emt 0:04:43] [#]} 12. f4 $146 {[%emt 0:12:06]} ({Predecessor:} 12. b3 Be6 13. Nd5 Nbxd5 14. exd5 Bd7 15. c4 Qc7 16. Be3 b5 17. Rc1 bxc4 18. bxc4 {1-0 (87) Mogranzini,R (2422)-Gaehwiler,G (2226) Rogaska Slatina 2009}) 12... exf4 {[%emt 0:17:06]} 13. Bxf4 {[%emt 0:00:18]} Be6 {[%emt 0:07:37]} 14. Nf5 {[%emt 0:03:22]} (14. Kh1 $14) 14... Bxf5 $11 {[%emt 0:01:06]} 15. exf5 {[%emt 0:00:11]} d5 {[%emt 0:00:28]} 16. Kh1 {[%emt 0:07:19]} Rc8 {[%emt 0:12:46]} 17. a4 {[%emt 0:11:35]} d4 {[%emt 0:13:07]} 18. Ne2 {[%emt 0:04:07]} Nbd5 {[%emt 0:00:51]} 19. Nxd4 {[%emt 0:08:12]} Nxf4 {[%emt 0:00:09]} 20. Rxf4 {[%emt 0:00:04]} Qb6 {[%emt 0:01:40]} 21. a5 {[%emt 0:11:33]} (21. Rb1 $15) 21... Qxb2 $17 {[%emt 0:01:53]} 22. Rb1 {[%emt 0:00:04]} Qc3 {[%emt 0:01:46] Black is more active.} (22... Qa3 $1 $17) 23. Rxb7 $15 {[%emt 0:01:23]} Rfe8 {[%emt 0:07:23]} 24. Qd3 {[%emt 0:04:25]} Qc5 {[%emt 0:04:43][%mdl 1024] aiming for ...Bd6. Black has compensation.} 25. Rf1 $2 {[%emt 0:03:33]} (25. Qxa6 Qe5 26. Rf1 (26. Qf1 $2 Bd6 $19) 26... Bd6 $17) ({White has to play} 25. Nb3 $1 $15 Qxc2 26. Qxc2 Rxc2 27. Rf1) 25... Rcd8 $2 {[%emt 0:05:12]} (25... Bd6 $1 $19 {Threatens to win with ...Qe5.} 26. Rd1 (26. Qb3 Rc7 $19) 26... Qxa5) 26. c3 {[%emt 0:00:42]} Bd6 {[%emt 0:01:35]} 27. Nc6 {[%emt 0:06:10] Against Qe5} Rc8 $1 {[%emt 0:01:52]} 28. Rb6 {[%emt 0:00:16]} (28. Qxa6 $2 Qxc3 29. Na7 Qg3 30. Qxd6 Qxd6 $19) 28... Bc7 {[%emt 0:05:47]} (28... Nd7 $5 {[%cal Rd7b6]} 29. Rxa6 Nb8 30. Nxb8 Bxb8 $17) 29. Rb7 {[%emt 0:02:26]} (29. Rxa6 $2 Rcd8 $1 {[%mdl 512]} 30. Nd4 (30. Nxd8 $2 Qe5 $19) 30... Qe5 $19) (29. Rb4 $11) 29... Bd6 {[%emt 0:00:28]} (29... Bxa5 $5 {[%cal Rc8c6]} 30. Qxa6 Ne4 31. Bxe4 Rxe4 32. Qxa5 (32. Nxa5 $2 Qe3 $19) 32... Qxc6 $17) 30. Rb6 {[%emt 0:00:07]} (30. Qxa6 $2 Qxc3 31. Na7 Qg3 32. Qxd6 Qxd6 $19) 30... Bc7 {[%emt 0:00:03]} 31. Rb7 {[%emt 0:00:12]} (31. Rxa6 $2 Rcd8 $1 {[%mdl 512]} 32. Qc2 (32. Nxd8 $2 Qe5 $19) 32... Ne4 33. Bxe4 Qe3 $19) 31... Bxa5 {[%emt 0:03:24]} 32. Qxa6 {[%emt 0:01:52]} Bc7 {[%emt 0:01:18]} ({Don't play} 32... Ra8 33. Qd3 $11) (32... Ne4 $1 $15 33. Bxe4 Rxe4 34. Qxa5 (34. Nxa5 $2 Qe3 $19) 34... Qxc6) 33. Qd3 $1 $11 {[%emt 0:01:56]} ({Avoid the trap} 33. Qa2 $2 Ne4 34. Bxe4 Rxe4 $19) 33... Re3 $40 {[%emt 0:01:11][%mdl 128] Black is up to no good.} 34. Qd4 {[%emt 0:00:13]} Qxd4 {[%emt 0:00:36]} 35. cxd4 {[%emt 0:00:13] And now Na7 would win.} Bd6 {[%emt 0:00:23]} 36. Rbb1 {[%emt 0:02:01]} Rce8 {[%emt 0:00:23]} 37. Bf3 {[%emt 0:00:51] [#] White is on the road to losing.} (37. Ne5 $11 {and White is okay.} Bxe5 38. dxe5 R3xe5 39. Rb4) 37... Ne4 $1 $19 {[%emt 0:00:35]} 38. Kg2 {[%emt 0:01:05]} Nd2 $1 {[%emt 0:00:22][%csl LRb1,LRf1]} 39. Rbd1 {[%emt 0:00:32]} Nxf1 {[%emt 0:00:29]} ({And not} 39... Nxf3 40. Rxf3 Re2+ 41. Rf2 $11) 40. Rxf1 {[%emt 0:00:00]} Rc3 {[%emt 0:00:00]} 41. Rf2 {[%emt 0:01:52]} Ree3 {[%emt 0:04:16][%cal Oe3f3]} 42. Ne5 {[%emt 0:01:28]} Bxe5 {[%emt 0:01:22]} 43. dxe5 {[%emt 0:01:17]} Rxe5 {[%emt 0:00:14][%mdl 4096] Endgame KRR-KRB} 44. Kg3 {[%emt 0:00:25]} Kf8 {[%emt 0:06:28]} 45. Kf4 {[%emt 0:00:16]} (45. Kh4 $142) 45... Ree3 {[%emt 0:01:12]} 46. Bg2 {[%emt 0:00:24]} (46. h4 {was the only chance.}) 46... Red3 {[%emt 0:00:50] Hoping for ...Rc4+.} 47. Bf3 {[%emt 0:00:47]} Ke7 {[%emt 0:00:56]} 48. Rf1 {[%emt 0:01:27]} Rd4+ {[%emt 0:01:57]} 49. Kg3 {[%emt 0:00:09]} Kf6 {[%emt 0:00:58]} 50. Rf2 $2 {[%emt 0:00:17]} (50. Kh4) 50... Rdd3 {[%emt 0:00:43]} (50... h5 $142 {...hxg4 is the strong threat.} 51. gxh5 Kxf5) 51. Kf4 {[%emt 0:00:09]} Rd4+ {[%emt 0:01:01]} (51... Rc4+ $142 52. Kg3 h5) 52. Kg3 {[%emt 0:00:05]} h5 {[%emt 0:00:40] Black is clearly winning.} 53. gxh5 {[%emt 0:02:31]} Kxf5 {[%emt 0:03:33]} (53... Rdd3 $142 54. Kg2 {[#]} Rxf3 $1 55. Rxf3 Rxf3 56. Kxf3 Kxf5) 54. Kg2 {[%emt 0:00:05]} Rf4 {[%emt 0:00:40]} 55. Bg4+ {[%emt 0:00:55]} Kg5 {[%emt 0:00:36]} 56. Ra2 {[%emt 0:00:12]} Kh4 {[%emt 0:02:15]} 57. Ra6 {[%emt 0:00:16]} Rg3+ {[%emt 0:00:54]} 58. Kh2 {[%emt 0:00:04]} Rf2+ {[%emt 0:00:06]} 59. Kh1 {[%emt 0:00:02]} Rc3 {[%emt 0:00:53] ( -> ...Rc1+)} 60. Kg1 {[%emt 0:00:23]} Kg3 {[%emt 0:01:03] Weighted Error Value: White=0.58/Black=0.49} 0-1

[Event "Croatian 1B League 2022"]
[Site "Porec"]
[Date "2022.09.27"]
[Round "4.3"]
[White "Golubovic, Boris"]
[Black "Muha, Miljenko"]
[Result "1/2-1/2"]
[ECO "C01"]
[WhiteElo "2360"]
[BlackElo "2298"]
[Annotator "TA"]
[PlyCount "48"]
[EventDate "2022.09.24"]
[EventType "team-tourn"]
[EventCountry "CRO"]
[SourceTitle "playchess.com"]
[Source "ChessBase"]
[SourceQuality "1"]
[TimeControl "40/5400+30:1800+30"]

{[%evp 14,48,25,25,31,25,17,20,33,24,21,33,17,5,7,6,6,7,7,7,4,6,0,2,4,3,18,17,16,13,15,0,18,0,26,0,15]} 1. e4 {[%emt 0:01:38]} e6 {[%emt 0:00:06]} 2. d4 {[%emt 0:00:16]} d5 {[%emt 0:00:06]} 3. exd5 {[%emt 0:01:36]} exd5 {[%emt 0:00:05]} 4. Nf3 {[%emt 0:00:05]} Nf6 {[%emt 0:00:39]} 5. Bd3 {[%emt 0:00:41]} c5 {[%emt 0:00:07][%cal Bc7c5,Bc5c4][%mdl 32]} 6. O-O {[%emt 0:02:15]} c4 {[%emt 0:00:29]} 7. Re1+ {[%emt 0:00:19]} Be7 {[%emt 0:00:24]} 8. Bf1 {[%emt 0:00:09]} O-O {[%emt 0:00:59] C01: French: Exchange Variation.} 9. b3 {[%emt 0:00:38]} cxb3 {[%emt 0:00:59]} 10. axb3 {[%emt 0:00:12]} Nc6 {[%emt 0:03:15]} 11. Ne5 {[%emt 0:02:53]} Bf5 {[%emt 0:06:32]} 12. Nxc6 {[%emt 0:10:05]} bxc6 {[%emt 0:00:05]} 13. Rxe7 {[%emt 0:10:24]} Qxe7 {[%emt 0:00:05]} 14. Ba3 {[%emt 0:00:04]} Qe4 {[%emt 0:08:06] [#] And now ...Rfe8 would win.} 15. Bxf8 {[%emt 0:01:35]} Kxf8 {[%emt 0:00:06]} 16. c3 {[%emt 0:06:23] [#]} Qc2 $146 {[%emt 0:38:11]} ({Predecessor:} 16... Re8 17. Nd2 Qe7 18. b4 h6 19. Ra6 Qe1 20. Ra1 Qe7 21. Qa4 Qd6 22. Qxa7 Qf4 {½-½ (33) Merecki,A (1418)-Balacek,T (2367) Katowice 2021}) 17. Qxc2 {[%emt 0:10:01]} Bxc2 {[%emt 0:00:03]} 18. Nd2 {[%emt 0:00:05]} a5 $1 {[%emt 0:00:49]} 19. Ra2 {[%emt 0:12:45]} Bf5 {[%emt 0:01:52]} 20. f3 {[%emt 0:07:09]} h5 {[%emt 0:05:38]} 21. Ra4 {[%emt 0:00:51]} Bc2 $1 {[%emt 0:01:01]} 22. Ra2 {[%emt 0:00:28]} Bf5 {[%emt 0:00:08]} 23. Ra4 {[%emt 0:01:28]} Bc2 $1 {[%emt 0:00:07]} 24. Ra2 {[%emt 0:00:56]} Bf5 {[%emt 0:02:03] An even fight not without its subleties.  Weighted Error Value: White=0.05 (flawless) /Black=0.01 (flawless)} 1/2-1/2

[Event "Croatian 1B League 2022"]
[Site "Porec"]
[Date "2022.09.27"]
[Round "4.4"]
[White "Ivic, Mateo"]
[Black "Petrov, Jole"]
[Result "1/2-1/2"]
[ECO "B12"]
[WhiteElo "2203"]
[BlackElo "2370"]
[Annotator "TA"]
[PlyCount "83"]
[EventDate "2022.09.24"]
[EventType "team-tourn"]
[EventCountry "CRO"]
[SourceTitle "playchess.com"]
[Source "ChessBase"]
[SourceQuality "1"]
[TimeControl "40/5400+30:1800+30"]

{[%evp 9,83,18,40,40,45,34,38,43,29,45,32,-31,-39,-62,-19,-118,-127,-120,16,29,29,20,16,16,22,26,22,19,18,48,33,0,32,21,33,10,80,76,77,43,41,8,8,8,8,8,8,8,8,8,8,0,0,0,0,0,0,0,0,0,0,0,0,0,0,0,0,0,0,0,0,0,0,0,0,0]} 1. e4 {[%emt 0:00:19][%cal Be2e4,Be4e5][%mdl 32]} c6 {[%emt 0:00:38]} 2. d4 {[%emt 0:00:33]} d5 {[%emt 0:00:10]} 3. e5 {[%emt 0:00:28]} c5 {[%emt 0:01:17]} 4. dxc5 {[%emt 0:03:35]} e6 {[%emt 0:00:21]} 5. Bd3 {[%emt 0:01:43]} Bxc5 {[%emt 0:01:38]} 6. Qg4 {[%emt 0:03:23] B12: Caro-Kann: Advance Variation.} Ne7 {[%emt 0:00:44]} 7. b4 {[%emt 0:02:32]} Bb6 {[%emt 0:15:45]} 8. Nf3 {[%emt 0:02:13] White is slightly better.} ({But not} 8. Qxg7 Rg8 9. Qxh7 Bd4 $11) 8... Ng6 {[%emt 0:18:25] [#]} 9. O-O $146 {[%emt 0:07:33]} ({Predecessor:} 9. h4 f5 10. Qg3 O-O 11. h5 Nh8 12. Bg5 Qc7 13. Nbd2 a5 14. b5 Nd7 15. Be7 Nxe5 16. Bxf8 Nxf3+ 17. Nxf3 Qxg3 18. fxg3 Kxf8 {1-0 (46) Moussard,J (2625)-Plazuelo Pascual,J (2448) Barcelona 2020}) 9... Nc6 {[%emt 0:22:16][%cal Bb8c6,Bc6b4,Bb4d3][%mdl 32]} 10. h4 {[%emt 0:16:50]} (10. Bb2 $14) 10... f5 $15 {[%emt 0:09:51]} 11. Qh5 {[%emt 0:06:59]} Nxb4 {[%emt 0:04:38]} 12. Ng5 {[%emt 0:02:11]} (12. Nc3 $11 {remains equal.}) 12... Nxd3 $17 {[%emt 0:00:16]} 13. cxd3 {[%emt 0:01:40] [#]} Kf8 {[%emt 0:08:31]} (13... Bd4 $1 $17 {Hoping for ...Qd7.} 14. Nxh7 {[#]} Qd7 $1 15. Qxg6+ Qf7 16. Qxf7+ Kxf7 17. Ng5+ Kg6) 14. Nxh7+ $11 {[%emt 0:04:56]} Kg8 {[%emt 0:00:14]} 15. Qxg6 {[%emt 0:01:22] Intending Nf6+ and mate.} Rxh7 {[%emt 0:00:07]} 16. Bg5 {[%emt 0:01:26]} Qf8 {[%emt 0:01:53]} 17. Nd2 {[%emt 0:05:37]} Bd7 {[%emt 0:00:07]} 18. Nf3 {[%emt 0:01:11]} Qf7 {[%emt 0:02:59]} 19. Qxf7+ Kxf7 {[%emt 0:00:01]} 20. Be3 {[%emt 0:03:09]} Bxe3 {[%emt 0:00:17]} (20... d4 $5 {[%cal Rd4e3]} 21. Bd2 Rhh8 $11) 21. fxe3 {[%emt 0:00:09] Black must now prevent Ng5+.} Ke7 {[%emt 0:00:30]} 22. Rac1 {[%emt 0:00:58]} Bc6 {[%emt 0:05:38]} (22... Rhh8 $1 $11 {keeps the balance.}) 23. g3 $16 {[%emt 0:02:40] White is more active.} Rhh8 {[%emt 0:01:39]} 24. Rc3 {[%emt 0:00:54]} (24. Nd4 $5 {[%cal Rd4c6]}) 24... Rhc8 {[%emt 0:00:43]} 25. Rfc1 {[%emt 0:00:18]} Bd7 {[%emt 0:00:06] The position is equal.} 26. Kf2 {[%emt 0:01:06]} Rxc3 {[%emt 0:01:19]} 27. Rxc3 {[%emt 0:00:08]} Rc8 {[%emt 0:00:04]} 28. Rxc8 {[%emt 0:00:16]} Bxc8 $11 {[%emt 0:00:01][%mdl 4096] Endgame KB-KN} 29. Nd4 {[%emt 0:00:48][%cal Oe3e4]} Bd7 {[%emt 0:00:24]} 30. Ke1 {[%emt 0:02:00]} a5 {[%emt 0:00:47]} 31. Ne2 {[%emt 0:00:58]} b5 {[%emt 0:00:50][%cal Bb7b5,Bb5b4,Bb4b3][%mdl 32]} 32. Kd2 {[%emt 0:00:55] And now Kc3 would win.} b4 {[%emt 0:02:58]} 33. Nf4 {[%emt 0:00:58]} Bb5 {[%emt 0:00:29]} 34. Kc2 {[%emt 0:00:23]} a4 {[%emt 0:00:41]} 35. a3 {[%emt 0:02:24]} b3+ {[%emt 0:00:28]} 36. Kc3 {[%emt 0:00:10]} Kf7 {[%emt 0:00:15]} 37. Kb2 {[%emt 0:00:18]} Bd7 {[%emt 0:00:29]} 38. Kc3 {[%emt 0:00:12]} Kg8 {[%emt 0:01:02]} 39. Kb2 {[%emt 0:00:34]} Kh7 {[%emt 0:00:22]} 40. d4 {[%emt 0:00:00]} Kg8 {[%emt 0:00:00]} 41. Kc3 {[%emt 0:01:53]} Kf7 {[%emt 0:01:13]} 42. Kb2 {[%emt 0:01:24] Weighted Error Value: White=0.14 (very precise) /Black=0.12 (very precise)} 1/2-1/2

[Event "Croatian 1B League 2022"]
[Site "Porec"]
[Date "2022.09.27"]
[Round "4.5"]
[White "Zelenika, Srdjan"]
[Black "Sekelja, Marko"]
[Result "1/2-1/2"]
[ECO "B19"]
[WhiteElo "2207"]
[BlackElo "2088"]
[Annotator "TA"]
[PlyCount "75"]
[EventDate "2022.09.24"]
[EventType "team-tourn"]
[EventCountry "CRO"]
[SourceTitle "playchess.com"]
[Source "ChessBase"]
[SourceQuality "1"]
[TimeControl "40/5400+30:1800+30"]

{[%evp 23,75,25,34,18,16,5,65,56,60,43,173,170,138,158,160,120,127,118,116,104,245,256,256,222,227,250,250,239,283,203,203,174,191,200,409,0,0,0,0,0,0,0,0,0,0,0,10,0,0,0,0,0,0,-42]} 1. e4 {[%emt 0:00:07]} c6 {[%emt 0:00:05]} 2. d4 {[%emt 0:00:09]} d5 {[%emt 0:00:03]} 3. Nd2 {[%emt 0:00:07]} dxe4 {[%emt 0:00:04]} 4. Nxe4 {[%emt 0:00:06]} Bf5 {[%emt 0:00:03]} 5. Ng3 {[%emt 0:00:09]} Bg6 {[%emt 0:00:05]} 6. h4 {[%emt 0:00:14]} h6 {[%emt 0:00:05]} 7. Nf3 {[%emt 0:00:12]} Nd7 {[%emt 0:00:09]} 8. h5 {[%emt 0:00:16]} Bh7 {[%emt 0:00:09]} 9. Bd3 {[%emt 0:00:08]} Bxd3 {[%emt 0:00:03]} 10. Qxd3 {[%emt 0:00:12]} e6 {[%emt 0:00:18]} 11. Bf4 {[%emt 0:00:27]} Ngf6 {[%emt 0:01:29]} 12. O-O-O {[%emt 0:00:19]} Be7 {[%emt 0:01:57]} 13. Kb1 {[%emt 0:07:17] B19: Classical Caro-Kann: 4...Bf5 main line.} Qb6 {[%emt 0:06:36]} 14. c4 {[%emt 0:03:28]} O-O-O {[%emt 0:12:44]} (14... O-O $11) 15. Qc2 $14 {[%emt 0:18:32] White is slightly better.} c5 {[%emt 0:12:44]} 16. d5 {[%emt 0:04:17] [#]} Bd6 $146 {[%emt 0:01:11]} (16... Rhe8 $1 $14) ({Predecessor:} 16... Rhe8 17. dxe6 fxe6 18. Rhe1 Nf8 19. Be5 Rxd1+ 20. Rxd1 Rd8 {1-0 (79) Kholmov,R-Fazekas,S Kecskemet 1962}) 17. Bxd6 $18 {[%emt 0:09:02]} Qxd6 {[%emt 0:00:06]} 18. dxe6 {[%emt 0:03:04]} Qxe6 {[%emt 0:00:14]} 19. Rde1 {[%emt 0:11:01]} Qa6 {[%emt 0:08:13]} 20. Re7 $36 {[%emt 0:02:29][%mdl 2048] Black is under strong pressure.} Rhf8 {[%emt 0:00:48]} 21. Nf5 {[%emt 0:04:32] White is much more active.} Rde8 {[%emt 0:00:27]} (21... Ng8 $16) 22. Rxe8+ {[%emt 0:09:40]} Nxe8 {[%emt 0:01:47]} 23. Rd1 {[%emt 0:04:48] And now Ne7+ would win.} Qe6 {[%emt 0:10:09]} 24. Qd3 {[%emt 0:03:54][%cal Of3e5] Black must now prevent Ne5!} Nef6 {[%emt 0:11:59] [#]} 25. Re1 $1 {[%emt 0:04:07]} ({Resist} 25. Nxg7 $6 Qe4 $16) 25... Qa6 {[%emt 0:01:35]} 26. g3 {[%emt 0:10:13]} Nxh5 {[%emt 0:05:23]} 27. Re7 {[%emt 0:00:32]} Qc6 {[%emt 0:06:52]} 28. Nd6+ {[%emt 0:01:40]} Kd8 $2 {[%emt 0:02:52] [#]} (28... Kb8 29. Nxb7 (29. Nxf7 Nb6 $16) 29... Qg6 30. Qxg6 (30. Rxd7 Qxd3+ 31. Rxd3 Kxb7 $16) 30... fxg6) 29. Rxf7 $2 {[%emt 0:00:40]} (29. Ne5 $1 $18 Nxe5 30. Rxe5) 29... Rxf7 $11 {[%emt 0:00:48] The position is equal.} 30. Nxf7+ {[%emt 0:00:04]} Ke7 {[%emt 0:01:35]} 31. N7e5 {[%emt 0:01:07]} Nxe5 {[%emt 0:00:43]} 32. Nxe5 {[%emt 0:00:05][%mdl 4096] Endgame KQN-KQN} Qh1+ {[%emt 0:00:30]} 33. Kc2 {[%emt 0:00:07] Strongly threatening Qd7+.} Nf6 {[%emt 0:00:14] Prevents Qd7+.} 34. Nf3 {[%emt 0:02:24]} Qh5 {[%emt 0:01:04]} 35. Kb3 {[%emt 0:00:19]} Qg4 {[%emt 0:04:07]} 36. Qe3+ {[%emt 0:00:40]} Kd6 {[%emt 0:03:02]} 37. Qe5+ {[%emt 0:01:22]} Kc6 {[%emt 0:00:51]} 38. Qe3 {[%emt 0:00:33] Blacks defense is rewarded with a draw.  Weighted Error Value: White=0.23 (precise) /Black=0.35} 1/2-1/2

[Event "Croatian 1B League 2022"]
[Site "Porec"]
[Date "2022.09.27"]
[Round "4.6"]
[White "Tomas, Ante"]
[Black "Klobucar, Dean"]
[Result "0-1"]
[ECO "C18"]
[WhiteElo "2137"]
[BlackElo "2196"]
[Annotator "TA"]
[PlyCount "94"]
[EventDate "2022.09.24"]
[EventType "team-tourn"]
[EventCountry "CRO"]
[SourceTitle "playchess.com"]
[Source "ChessBase"]
[SourceQuality "1"]
[TimeControl "40/5400+30:1800+30"]

{[%evp 15,94,25,37,22,54,52,49,49,49,39,69,60,68,69,62,42,26,21,31,0,0,0,24,0,0,0,52,31,140,133,118,123,128,122,162,75,100,25,75,12,234,216,254,210,206,-666,-654,-671,-654,-672,-645,-595,-479,-480,-430,-979,-952,-1166,-1220,-1182,-1018,-1320,-1304,-1444,-1415,-2061,-1943,-1614,-1298,-29962,-29962,-29987,-29978,-29955,-3960,-29981,-29982,-29980,-29980,-29972,-29974]} 1. e4 {[%emt 0:00:04]} e6 {[%emt 0:01:07]} 2. d4 {[%emt 0:00:03]} d5 {[%emt 0:00:04]} 3. Nc3 {[%emt 0:00:10]} Bb4 {[%emt 0:00:24]} 4. e5 {[%emt 0:00:21]} c5 {[%emt 0:00:09]} 5. a3 {[%emt 0:00:13]} cxd4 {[%emt 0:00:18]} 6. axb4 {[%emt 0:00:57]} dxc3 {[%emt 0:00:06]} 7. bxc3 {[%emt 0:01:41]} Ne7 {[%emt 0:00:41]} 8. Nf3 {[%emt 0:06:12]} Qc7 {[%emt 0:00:28]} 9. Bd3 {[%emt 0:06:53] C18: French: 3 Nc3 Bb4: Main line: 7 h4 and 7 Qg4.} (9. Bb5+ Bd7 10. Bd3 Nbc6 $15) 9... Qxc3+ {[%emt 0:10:41]} 10. Bd2 {[%emt 0:00:11]} Qc7 {[%emt 0:00:08]} 11. O-O {[%emt 0:00:35][%mdl 1024] White has compensation. White is slightly better.} Nd7 {[%emt 0:01:24][%cal Bb8d7,Bd7b6,Bb6c4][%mdl 32]} 12. Re1 {[%emt 0:03:36] [#]} Nb6 $146 {[%emt 0:02:52]} ({Predecessor:} 12... a6 13. Qe2 Rb8 14. b5 Nc5 15. Bb4 Ra8 16. bxa6 bxa6 17. Bb5+ Bd7 18. Bxd7+ Kxd7 {1-0 (58) Ljuboschiz,A (1992)-Heyn,P (1778) Leverkusen 2012}) 13. Ng5 {[%emt 0:20:35] Hoping for Qh5.} h6 $1 {[%emt 0:28:17]} 14. Qh5 {[%emt 0:03:54]} g6 $1 {[%emt 0:11:29]} 15. Qh3 {[%emt 0:01:39]} Nc4 {[%emt 0:03:07]} 16. Bc1 {[%emt 0:07:20]} a5 {[%emt 0:15:07]} ({Much less strong is} 16... Nxe5 17. Bf4 f6 18. c4 $16 (18. Nxe6 Qc6 $16)) 17. Nf3 {[%emt 0:09:18]} a4 {[%emt 0:00:46]} 18. Qh4 {[%emt 0:04:49]} Ng8 {[%emt 0:07:24]} 19. Bg5 {[%emt 0:14:55]} b5 {[%emt 0:02:41]} 20. Be3 {[%emt 0:03:52]} Qd8 {[%emt 0:04:15]} (20... Nxe3 $11 21. Bxb5+ Bd7 22. Bxd7+ Kxd7 23. fxe3 Ne7) 21. Qg3 {[%emt 0:00:39]} Bd7 {[%emt 0:01:18] [#]} ({Black should play} 21... Nxe3 $14 22. Rxe3 (22. Bxb5+ Bd7 $11) 22... Ba6) 22. Bxg6 $1 $16 {[%emt 0:03:07][%mdl 512]} Nxe3 {[%emt 0:04:12]} (22... Ne7 23. Bd3) 23. Rxe3 {[%emt 0:00:12]} ({Don't go for} 23. Bxf7+ $2 Kxf7 24. Rxe3 Rh7 25. Qf4+ Ke8 $19) 23... Ne7 {[%emt 0:01:23]} (23... fxg6 $2 24. Qxg6+ Ke7 25. Qg7+ Ke8 26. Qg6+ Ke7 27. Qg7+ Ke8 28. Qg6+ Ke7 $18) 24. Bd3 {[%emt 0:00:52]} Qc7 {[%emt 0:00:45]} 25. Qh4 {[%emt 0:06:40]} (25. Ra3 $1 $18) 25... Qc3 {[%emt 0:00:57] [#]} 26. Ree1 {[%emt 0:01:02]} (26. Rf1 $1 $16 {And now Ng5 would win.} a3 {[#]} 27. Bxb5 $1) 26... a3 {[%emt 0:00:33]} (26... Ng6 $1 $11 {keeps the balance.} 27. Qd4 Qxd4 28. Nxd4 O-O) 27. Qd4 {[%emt 0:02:30]} (27. Ra2 $16) 27... Qc7 $2 {[%emt 0:02:22]} (27... Qxd4 $1 $11 {and Black stays safe.} 28. Nxd4 a2) 28. Ra2 $18 {[%emt 0:00:41]} Nc6 {[%emt 0:00:48][%cal Be7c6,Bc6b4,Bb4a2,Ba2c3,Bc3b5,Bb5d4,Bd4c2][%mdl 32]} 29. Qc5 {[%emt 0:00:24]} Qa7 {[%emt 0:00:19] ...Qxc5 is the strong threat.} 30. Bxb5 $4 {[%emt 0:01:30][%mdl 8192]} (30. Qc3 $18) 30... Qxc5 $19 {[%emt 0:00:11][%mdl 64] Remove Defender} 31. bxc5 {[%emt 0:00:08]} Nb4 $1 {[%emt 0:00:47][%csl LRa2,LRb5][%mdl 64] Discovered Attack} 32. c6 {[%emt 0:00:44]} Nxa2 {[%emt 0:00:35]} 33. cxd7+ {[%emt 0:00:01]} Kd8 {[%emt 0:00:40]} 34. Nd4 {[%emt 0:00:47]} Kc7 {[%emt 0:00:39] aiming for ...Nc3.} 35. Nc6 {[%emt 0:00:40]} (35. Ra1 $142 Nc3 36. Bd3) 35... Nc3 {[%emt 0:00:11]} 36. d8=Q+ {[%emt 0:00:18]} Rhxd8 {[%emt 0:00:06]} 37. Nxd8 {[%emt 0:00:05]} Nxb5 {[%emt 0:00:48]} 38. Nxf7 {[%emt 0:00:05][%mdl 4096] Endgame KRN-KRN} a2 {[%emt 0:00:06]} 39. Ra1 {[%emt 0:00:05]} Nd4 {[%emt 0:00:06] Strongly threatening ...Rb8.} 40. g4 {[%emt 0:00:00]} Nxc2 {[%emt 0:00:00]} 41. Rxa2 {[%emt 0:01:27]} Rxa2 {[%emt 0:00:22]} 42. h4 {[%emt 0:00:04]} d4 {[%emt 0:00:43][%cal Bd5d4,Bd4d3][%mdl 32]} 43. g5 {[%emt 0:00:08]} hxg5 {[%emt 0:01:02]} 44. Nxg5 {[%emt 0:00:14]} Kd7 {[%emt 0:00:18]} (44... d3 $142 45. Ne4 Nd4 46. Kg2 d2 47. Nxd2 Rxd2 48. Kh3 Rxf2 49. h5 Rf4 50. h6 Nf5 51. h7 Rh4+ 52. Kg2 Rxh7 53. Kf2 Rh4 54. Kf3 Kc6 55. Kf2 Kd5 56. Ke2 Kd4 57. Kf3 Kd3 58. Kf2 Rf4+ 59. Kg1 Ke2 60. Kg2 Rh4 61. Kg1 Kf3 62. Kf1 Rh1#) 45. h5 {[%emt 0:00:07]} d3 {[%emt 0:00:23] Black mates.} 46. Ne4 {[%emt 0:00:27]} Ke7 {[%emt 0:01:35]} 47. h6 {[%emt 0:00:25]} Kf7 {[%emt 0:00:24] Weighted Error Value: White=0.85/Black=0.42} 0-1